bitfinex/quotes_BTCUSD_20260315
["timestamp","ask_amount","ask_price","bid_price","bid_amount"]
[1773614024808,0.06933491,72114.0,72091.0,0.20842618]
[1773614025890,0.06933491,72114.0,72092.0,0.0014]
[1773614026260,0.16335734,72114.0,72091.0,0.20842618]
[1773614026458,0.16335901,72112.0,72093.0,0.0014]
[1773614027210,0.06933658,72112.0,72093.0,0.0014]
[1773614028265,0.06915944,72112.0,72093.0,0.0014]
[1773614029712,0.06933658,72113.0,72093.0,0.0014]
[1773614030323,0.06915939,72113.0,72093.0,0.0014]
[1773614030534,0.06932697,72122.0,72100.0,0.17284012]
[1773614030686,0.06932697,72122.0,72093.0,0.07075389]
[1773614031269,0.09065343,72121.0,72093.0,0.0014]
[1773614031504,0.09065343,72121.0,72087.0,0.00022665]
[1773614031722,0.09065343,72121.0,72093.0,0.0014]
[1773614032241,0.09065343,72121.0,72090.0,0.0014]
[1773614032242,0.08914948,72118.0,72090.0,0.0014]
[1773614032590,3.35331,72115.0,72087.0,0.00022665]
[1773614032735,0.09058948,72114.0,72087.0,0.00022665]
[1773614032942,0.08892383,72112.0,72087.0,0.00022665]
[1773614033145,0.08892383,72109.0,72087.0,0.00022665]
[1773614033768,0.08892383,72109.0,72087.0,1e-08]
[1773614034602,0.11164915,72107.0,72087.0,1e-08]
[1773614034755,0.00144,72106.0,72087.0,1e-08]
[1773614034958,0.11308915,72106.0,72087.0,1e-08]
[1773614035201,0.11164915,72104.0,72087.0,1e-08]
[1773614036051,0.11164915,72104.0,72088.0,0.00022]
[1773614036304,0.06934331,72105.0,72079.0,0.00012]
[1773614036305,0.187123,72103.0,72079.0,0.00012]
[1773614036514,1.707211,72102.0,72076.0,0.0014]
[1773614036663,1.287583,72098.0,72073.0,1e-08]
[1773614036872,0.17284012,72090.0,72054.0,0.0006193]
[1773614037097,0.06936063,72087.0,72052.0,0.00136]
[1773614037296,0.11165038,72086.0,72052.0,0.00136]
[1773614038818,0.11013904,72084.0,72052.0,0.00136]
[1773614039205,0.11013904,72082.0,72052.0,0.00136]
[1773614040502,0.11015476,72072.0,72052.0,0.00136]
[1773614040725,0.11154476,72071.0,72052.0,0.00136]
[1773614041348,0.06937699,72070.0,72052.0,0.00136]
[1773614041848,0.11021163,72069.0,72036.0,0.00022]
[1773614041998,0.11021163,72069.0,72036.0,0.00057544]
[1773614042393,1.309466,72068.0,72036.0,0.00057544]
[1773614042610,0.21855425,72059.0,72036.0,0.00057544]
[1773614042817,0.11165163,72058.0,72036.0,0.00057544]
[1773614043034,0.11165163,72058.0,72031.0,0.0014]
[1773614043234,0.17697243,72055.0,72031.0,0.0014]
[1773614043435,0.10992391,72054.0,72030.0,5e-05]
[1773614043664,0.11189534,72053.0,72024.0,0.00145]
[1773614043964,0.11189534,72051.0,72024.0,0.00145]
[1773614044192,0.11189534,72050.0,72024.0,0.00145]
[1773614044326,0.27904,72050.0,72024.0,0.00145]
[1773614044665,0.11333534,72049.0,72024.0,0.00145]
[1773614045185,0.11246416,72049.0,72024.0,0.00145]
[1773614045479,0.11134975,72047.0,72024.0,0.00145]
[1773614045622,0.11134975,72047.0,72024.0,5e-05]
[1773614045822,0.09931705,72039.0,72015.0,5e-05]
[1773614046671,0.09931705,72037.0,72010.0,5e-05]
[1773614046873,0.06939817,72048.0,72010.0,5e-05]
[1773614046874,0.09931705,72035.0,72010.0,5e-05]
[1773614047071,0.09931705,72033.0,72010.0,5e-05]
[1773614047274,0.10075705,72032.0,72008.0,0.0014]
[1773614047478,0.07085455,72031.0,72008.0,0.0014]
[1773614047712,0.06941148,72035.0,72008.0,0.0014]
[1773614047713,5e-05,72085.0,72067.0,0.19061867]
[1773614047912,0.06935582,72092.0,72070.0,0.17284012]
[1773614048191,0.06946215,72092.0,72070.0,0.17284012]
[1773614048382,0.06946215,72092.0,72067.0,0.19061867]
[1773614048552,0.00144,72091.0,72067.0,0.19061867]
[1773614048797,0.10149421,72090.0,72063.0,0.0014]
[1773614049374,0.0693587,72089.0,72063.0,0.0014]
[1773614049577,0.10149421,72088.0,72063.0,0.0014]
[1773614049803,0.10149421,72088.0,72063.0,0.00135]
[1773614050034,0.10149421,72088.0,72042.0,0.18312]
[1773614050198,0.10197596,72086.0,72043.0,0.07080256]
[1773614051536,0.10197596,72084.0,72043.0,0.07080256]
[1773614052593,0.10197596,72084.0,72059.0,0.00022]
[1773614052851,0.07080255,72085.0,72052.0,0.00022]
[1773614052852,0.17284012,72080.0,72052.0,0.00022]
[1773614052999,0.12370963,72079.0,72052.0,0.00022]
[1773614053333,0.00144,72078.0,72052.0,0.00022]
[1773614053509,0.12370963,72075.0,72052.0,0.00022]
[1773614055632,0.12642126,72069.0,72040.0,5e-05]
[1773614055996,0.12619869,72067.0,72040.0,5e-05]
[1773614056204,0.12619869,72067.0,72030.0,0.19066867]
[1773614056904,0.12619869,72067.0,72035.0,0.00035449]
[1773614057303,0.12763869,72066.0,72035.0,0.00035449]
[1773614058670,0.12597964,72064.0,72035.0,0.00035449]
[1773614059074,0.1382,72063.0,72035.0,0.00035449]
[1773614059426,0.12741964,72062.0,72035.0,0.00035449]
[1773614059698,0.109,72056.0,72030.0,5e-05]
[1773614059923,0.12558295,72055.0,72030.0,5e-05]
[1773614060103,0.12558295,72053.0,72030.0,5e-05]
[1773614060256,0.12558295,72053.0,72029.0,0.00022]
[1773614060658,0.06939432,72052.0,72029.0,0.00022]
[1773614060905,0.12558295,72051.0,72029.0,0.00022]
[1773614061498,0.12558295,72051.0,72024.0,5e-05]
[1773614061499,0.17284012,72050.0,72024.0,5e-05]
[1773614061706,0.12538435,72049.0,72021.0,0.0003875]
[1773614061867,0.12532121,72047.0,72021.0,0.0003875]
[1773614062503,0.12532121,72045.0,72021.0,0.0003875]
[1773614062693,0.06940203,72044.0,72021.0,0.0003875]
[1773614062890,0.12532121,72043.0,72021.0,0.0003875]
[1773614063087,0.0692248,72044.0,72021.0,0.0003875]
[1773614063088,0.12532121,72039.0,72021.0,1e-08]
[1773614063298,0.12529621,72037.0,72010.0,5e-05]
[1773614063796,0.12529621,72037.0,72005.0,5e-05]
[1773614064197,0.12519848,72035.0,72005.0,5e-05]
[1773614064402,0.12519848,72033.0,72000.0,0.24259415]
[1773614065108,0.17284012,72030.0,72000.0,0.1731]
[1773614065329,0.12519848,72028.0,72000.0,0.1731]
[1773614065547,0.12519848,72028.0,72002.0,0.00032649]
[1773614065752,0.12511446,72026.0,72000.0,0.1731]
[1773614066062,0.00144,72027.0,72000.0,0.00010664]
[1773614066063,0.12511446,72019.0,72000.0,0.00010664]
[1773614066361,0.12511446,72017.0,72000.0,0.00010664]
[1773614066567,0.12511446,72015.0,72000.0,0.00010664]
[1773614066710,0.00144,72014.0,72000.0,0.00010664]
[1773614066918,0.12511446,72012.0,72000.0,0.00010664]
[1773614067117,0.06943383,72011.0,72000.0,0.00010664]
[1773614067316,0.12632391,72010.0,71990.0,5e-05]
[1773614067521,0.12643015,72010.0,71990.0,5e-05]
[1773614067962,0.00010624,72010.0,71990.0,5e-05]
[1773614068186,0.00010624,72010.0,71987.0,0.00022]
[1773614068187,0.12629374,72009.0,71987.0,0.00022]
[1773614068403,0.12485374,72009.0,71987.0,0.00022]
[1773614068608,0.12471874,72007.0,71987.0,0.00022]
[1773614069227,0.06943865,72006.0,71995.0,0.00022]
[1773614069438,0.12471874,72005.0,71995.0,0.00022]
[1773614069889,0.03234816,72033.0,71987.0,0.00022]
[1773614070059,0.20645347,72067.0,72004.0,0.0384]
[1773614070060,0.06939411,72053.0,72004.0,0.0384]
[1773614070259,0.12532873,72065.0,72045.0,0.211109]
[1773614070260,0.07083056,72056.0,72045.0,0.211109]
[1773614070524,0.00144,72055.0,72045.0,0.211109]
[1773614070691,0.06949711,72056.0,72045.0,0.211109]
[1773614070895,0.00144,72054.0,72045.0,0.211109]
[1773614071125,0.00144,72054.0,72040.0,0.07834864]
[1773614071126,0.00144,72054.0,72020.0,0.00132]
[1773614071452,0.06939336,72053.0,72035.0,0.211109]
[1773614071606,0.07083336,72053.0,72035.0,0.211109]
[1773614072016,0.06939336,72053.0,72035.0,0.211109]
[1773614072210,0.00154624,72052.0,72041.0,0.211109]
[1773614073705,0.00144,72051.0,72041.0,0.211109]
[1773614073921,0.06939336,72055.0,72041.0,0.211059]
[1773614073922,0.00010624,72053.0,72041.0,0.211059]
[1773614074141,0.00144,72050.0,72041.0,0.28046311]
[1773614074355,0.00144,72050.0,72041.0,0.211059]
[1773614074586,0.0012628,72050.0,72041.0,0.211059]
[1773614075212,0.0012628,72050.0,72041.0,0.28046381]
[1773614075416,0.0012628,72050.0,72041.0,0.211059]
[1773614075979,0.06939721,72049.0,72041.0,0.211059]
[1773614076182,0.0012628,72050.0,72041.0,0.28046333]
[1773614076388,0.00144,72049.0,72041.0,0.28046333]
[1773614076934,0.06939336,72055.0,72041.0,0.28046333]
[1773614077136,0.00154624,72054.0,72041.0,0.211059]
[1773614077576,0.10661848,72050.0,72020.0,5e-05]
[1773614077931,0.10654879,72048.0,72020.0,5e-05]
[1773614078125,0.10652379,72046.0,72020.0,5e-05]
[1773614078502,0.00144,72047.0,72020.0,5e-05]
[1773614078503,0.10652379,72044.0,72020.0,5e-05]
[1773614078704,0.10652379,72044.0,72015.0,0.0696498]
[1773614078705,0.10652379,72044.0,72015.0,0.0696998]
[1773614078904,0.10652379,72044.0,72015.0,0.00027]
[1773614079430,0.10652379,72044.0,72015.0,0.00022]
[1773614079816,0.13864,72043.0,72015.0,0.06964961]
[1773614080014,0.12561476,72040.0,72015.0,0.00022]
[1773614081038,0.00010624,72039.0,72015.0,0.00022]
[1773614081242,0.12561476,72038.0,72015.0,0.00022]
[1773614082048,0.06940877,72037.0,72015.0,0.00022]
[1773614082252,0.12820951,72036.0,72015.0,0.00022]
[1773614082653,0.00144,72035.0,72015.0,0.00022]
[1773614082853,0.00144,72034.0,72015.0,0.00022]
[1773614083182,0.12820951,72034.0,72015.0,0.00022]
[1773614083391,0.00010624,72033.0,72015.0,0.00022]
[1773614083679,0.00010624,72033.0,72010.0,5e-05]
[1773614083680,0.12676951,72032.0,72010.0,5e-05]
[1773614084036,0.06941455,72031.0,72010.0,0.00040537]
[1773614084264,0.12654447,72030.0,72010.0,0.00040537]
[1773614084537,0.12665071,72030.0,72010.0,0.00040537]
[1773614084662,0.12665071,72030.0,72010.0,0.00035537]
[1773614085079,0.12665071,72030.0,72015.0,0.00022]
[1773614085810,0.12654447,72030.0,72015.0,0.00022]
[1773614086259,0.12636642,72028.0,72010.0,0.00040537]
[1773614086428,0.12636642,72026.0,72010.0,0.00040537]
[1773614087052,0.12636642,72026.0,72010.0,0.00035537]
[1773614088299,0.06952658,72025.0,72010.0,0.00035537]
[1773614088489,0.07096658,72025.0,72010.0,0.00035537]
[1773614088688,0.00144,72024.0,72010.0,0.00035537]
[1773614088890,0.00126279,72024.0,72010.0,0.00035537]
[1773614089400,0.12622435,72023.0,72010.0,0.00035537]
[1773614089784,0.12608134,72019.0,72000.0,0.00027]
[1773614089987,0.17336015,72020.0,72000.0,0.00037663]
[1773614089988,0.12608134,72017.0,72000.0,0.00037663]
[1773614090178,0.06942901,72016.0,72000.0,0.06982058]
[1773614090382,0.00144,72015.0,72000.0,0.00032663]
[1773614090577,0.00112351,72015.0,72000.0,0.00032663]
[1773614090776,0.00144,72014.0,72000.0,0.00032663]
[1773614091162,0.12608134,72014.0,72000.0,0.00032663]
[1773614091418,0.00144,72013.0,72000.0,0.00032663]
[1773614091971,0.00010624,72012.0,72000.0,0.00032663]
[1773614092194,0.00144,72013.0,72000.0,0.00032663]
[1773614092398,0.12992307,72011.0,71995.0,5e-05]
[1773614092599,0.12992307,72011.0,71995.0,0.00015624]
[1773614093561,0.12992307,72011.0,72000.0,0.00022]
[1773614093753,0.12992307,72011.0,71995.0,0.00010624]
[1773614094351,0.06943672,72008.0,71995.0,0.00010624]
[1773614094647,0.03529991,72010.0,71995.0,0.00010624]
[1773614094954,0.00144,72009.0,71995.0,0.00010624]
[1773614096258,0.00013928,72008.0,71995.0,0.00010624]
[1773614096412,0.00144,72007.0,71995.0,0.00010624]
[1773614096611,5e-05,72053.0,71995.0,0.00010624]
[1773614096858,0.0002,72064.0,72000.0,0.17336015]
[1773614097058,0.00144,72071.0,72035.0,0.17336015]
[1773614097231,0.00144,72066.0,72030.0,0.04180798]
[1773614097444,0.20029076,72067.0,72031.0,0.1375629]
[1773614097648,0.20029076,72067.0,72032.0,0.1375629]
[1773614097649,0.13071045,72066.0,72032.0,0.1375629]
[1773614097852,0.13215045,72066.0,72033.0,0.1375629]
[1773614098048,0.0002,72067.0,72034.0,0.1375629]
[1773614098227,0.14450279,72066.0,72035.0,0.1375629]
[1773614098424,0.14450279,72066.0,72036.0,0.1375629]
[1773614098425,0.00144,72065.0,72036.0,0.1375629]
[1773614098624,0.00144,72065.0,72037.0,0.1375629]
[1773614098930,0.14450279,72065.0,72038.0,0.1375629]
[1773614099168,0.14450279,72065.0,72026.0,0.06941937]
[1773614099395,0.14306279,72059.0,72027.0,0.13763116]
[1773614099601,0.14306279,72057.0,72028.0,0.13763116]
[1773614099915,0.14467658,72055.0,72032.0,0.001]
[1773614100220,0.14467658,72055.0,72021.0,0.06942394]
[1773614100356,0.14467658,72047.0,72020.0,5e-05]
[1773614100724,0.00144,72046.0,72020.0,5e-05]
[1773614101055,0.00144,72046.0,72010.0,5e-05]
[1773614101694,0.14611658,72046.0,72010.0,5e-05]
[1773614101893,0.06939817,72048.0,72010.0,0.17341015]
[1773614102095,0.00144,72045.0,72010.0,0.17341015]
[1773614102297,0.00144,72045.0,72010.0,5e-05]
[1773614102493,0.06940203,72044.0,72007.0,0.06943769]
[1773614102697,0.15545254,72043.0,72007.0,0.06943769]
[1773614103346,0.15580798,72043.0,72007.0,0.06943769]
[1773614103477,0.00035544,72043.0,72010.0,0.17336015]
[1773614103671,0.00144,72042.0,72007.0,0.07043769]
[1773614104175,0.00144,72042.0,72007.0,0.06943769]
[1773614104416,0.06940492,72041.0,72007.0,0.06943769]
[1773614104943,0.15560833,72040.0,72007.0,0.06943769]
[1773614105697,0.15560833,72040.0,72010.0,0.169]
[1773614106238,0.00144,72039.0,72010.0,0.169]
[1773614106439,0.06940781,72038.0,72011.0,0.06943383]
[1773614107010,0.00144,72037.0,72011.0,0.17948415]
[1773614107361,0.00035544,72043.0,72011.0,0.17948415]
[1773614107553,0.00144,72044.0,72020.0,0.17336015]
[1773614107764,0.00010653,72044.0,72021.0,0.11149032]
[1773614107933,0.00010653,72044.0,72022.0,0.11005032]
[1773614107934,0.00144,72043.0,72022.0,0.11005032]
[1773614108131,0.0002,72040.0,72022.0,0.11005032]
[1773614108462,0.0002,72040.0,72021.0,0.11149032]
[1773614108655,0.0002,72040.0,72022.0,0.06942323]
[1773614111331,0.06939788,72049.0,72022.0,0.06942323]
[1773614111332,1e-08,72048.0,72030.0,0.17336015]
[1773614111554,1e-08,72048.0,72031.0,0.00144]
[1773614111987,0.00144,72060.0,72031.0,0.00144]
[1773614111988,0.00164,72067.0,72047.0,0.17336015]
[1773614112135,0.07102059,72067.0,72047.0,0.00144]
[1773614112761,0.07102059,72067.0,72048.0,0.06939817]
[1773614113437,0.15515572,72066.0,72048.0,0.06939817]
[1773614115411,0.0693818,72065.0,72047.0,0.06939817]
[1773614115780,0.0693818,72065.0,72046.0,0.06939817]
[1773614115961,0.15500551,72064.0,72045.0,0.06939817]
[1773614117152,0.15500551,72064.0,72035.0,0.00144]
[1773614117352,0.15500551,72062.0,72034.0,0.06941082]
[1773614117556,0.15500551,72062.0,72031.0,0.06941263]
[1773614119063,0.06938373,72063.0,72031.0,0.06941263]
[1773614119273,0.06938565,72061.0,72031.0,0.06941263]
[1773614119594,0.15487661,72060.0,72031.0,0.06941263]
[1773614119799,0.15538368,72058.0,72031.0,0.06941263]
[1773614120521,0.15538368,72058.0,72032.0,0.13744459]
[1773614120724,0.15538368,72058.0,72033.0,0.13744459]
[1773614120927,0.15538368,72058.0,72034.0,0.13744459]
[1773614121130,0.15538368,72058.0,72031.0,0.06941263]
[1773614121352,0.15538368,72058.0,72032.0,0.13749207]
[1773614121518,0.06938951,72057.0,72033.0,0.06941263]
[1773614121693,0.00144,72056.0,72034.0,0.13649207]
[1773614121894,0.00144,72055.0,72035.0,0.00144]
[1773614122117,0.06938951,72057.0,72035.0,0.00144]
[1773614122401,0.00144,72056.0,72035.0,0.00144]
[1773614122599,0.06938951,72057.0,72035.0,0.00144]
[1773614122799,0.00144,72056.0,72035.0,0.00044]
[1773614123019,0.00144,72056.0,72036.0,0.11005032]
[1773614123219,0.00144,72056.0,72037.0,0.11005032]
[1773614123425,0.06938277,72064.0,72038.0,0.06940781]
[1773614123627,0.00144,72063.0,72038.0,0.17945813]
[1773614123826,0.00144,72063.0,72038.0,0.17845813]
[1773614124195,0.00144,72062.0,72040.0,0.11005032]
[1773614124769,0.00144,72062.0,72040.0,0.10905032]
[1773614124909,0.00144,72062.0,72038.0,0.06840781]
[1773614125115,0.15574864,72061.0,72038.0,0.06840781]
[1773614125321,0.0002,72065.0,72040.0,0.17336015]
[1773614125693,0.0002,72065.0,72045.0,0.16517629]
[1773614125964,0.0002,72065.0,72046.0,0.16517629]
[1773614126164,0.0002,72065.0,72047.0,0.00144]
[1773614126462,0.0002,72065.0,72049.0,0.16517629]
[1773614127576,0.0002,72065.0,72050.0,0.06939625]
[1773614127747,0.0695827,72065.0,72050.0,0.06939625]
[1773614128163,0.06958192,72065.0,72050.0,0.06939625]
[1773614128562,0.0002,72065.0,72050.0,0.06939625]
[1773614129461,0.00144,72064.0,72050.0,0.06939625]
[1773614130360,0.00144,72063.0,72050.0,0.06939625]
[1773614130594,0.00144,72062.0,72050.0,0.06939625]
[1773614130790,0.0002,72065.0,72050.0,0.06935625]
[1773614131024,0.0002,72065.0,72050.0,0.07079625]
[1773614131224,0.00164,72065.0,72050.0,0.07079625]
[1773614131350,0.0002,72065.0,72050.0,0.07079625]
[1773614133928,0.0002,72065.0,72052.0,0.06939432]
[1773614134133,0.0002,72065.0,72053.0,0.13796791]
[1773614134333,0.0002,72065.0,72054.0,0.13796791]
[1773614134479,0.0002,72065.0,72055.0,0.13796791]
[1773614134684,0.0002,72065.0,72056.0,0.13796791]
[1773614134895,0.0002,72065.0,72057.0,0.13796791]
[1773614135103,0.0002,72065.0,72058.0,0.13796791]
[1773614135326,0.0002,72065.0,72059.0,0.13796791]
[1773614135526,0.0002,72065.0,72052.0,0.06939432]
[1773614135527,0.0002,72065.0,72060.0,0.13796791]
[1773614135729,0.0002,72065.0,72061.0,0.13796791]
[1773614135944,0.06957224,72075.0,72062.0,0.2073526]
[1773614136139,0.15135228,72074.0,72063.0,0.13796791]
[1773614136350,0.15135228,72074.0,72054.0,0.06939047]
[1773614136503,0.15135228,72074.0,72052.0,0.06939426]
[1773614137365,0.12268183,72065.0,72052.0,0.06939426]
[1773614137588,0.00144,72064.0,72052.0,0.06939426]
[1773614137737,0.12820207,72063.0,72052.0,0.06939426]
[1773614137947,0.12820207,72062.0,72047.0,0.00144]
[1773614138427,0.12820207,72062.0,72045.0,0.06940093]
[1773614139467,0.12834647,72062.0,72045.0,0.06940093]
[1773614140205,0.06938565,72061.0,72045.0,0.06940093]
[1773614140363,0.12905752,72058.0,72043.0,0.06940203]
[1773614140549,0.12905752,72056.0,72043.0,0.06940203]
[1773614142415,0.12887725,72055.0,72043.0,0.06940203]
[1773614144058,0.06939047,72056.0,72041.0,0.06940299]
[1773614144059,0.12874565,72053.0,72041.0,0.06940299]
[1773614144262,0.12874565,72053.0,72043.0,0.00022]
[1773614144462,0.19813949,72053.0,72044.0,0.06940203]
[1773614145162,0.06938908,72058.0,72044.0,0.06940203]
[1773614145693,0.12874565,72057.0,72044.0,0.06940203]
[1773614146457,0.06939047,72056.0,72044.0,0.06940203]
[1773614146826,0.19805241,72056.0,72044.0,0.06940203]
[1773614147233,0.12866194,72055.0,72044.0,0.06940203]
[1773614147953,0.12866194,72055.0,72043.0,0.06962203]
[1773614148308,0.0693924,72054.0,72043.0,0.06962203]
[1773614148515,0.12857673,72052.0,72043.0,0.06962203]
[1773614149043,0.12857673,72052.0,72039.0,0.06940595]
[1773614149227,0.12857673,72052.0,72040.0,0.06940588]
[1773614149628,0.12857673,72052.0,72036.0,0.06940895]
[1773614149829,0.12857673,72052.0,72036.0,0.06976439]
[1773614150443,0.10277669,72050.0,72036.0,0.06976439]
[1773614150647,0.00144,72049.0,72036.0,0.06976439]
[1773614151090,0.10421669,72049.0,72036.0,0.06976439]
[1773614151441,0.10421669,72049.0,72031.0,0.00022]
[1773614151644,0.10457206,72049.0,72031.0,0.00022]
[1773614151947,0.10457206,72049.0,72028.0,0.00022]
[1773614152183,0.10457206,72049.0,72026.0,0.0694185]
[1773614152369,0.10313206,72049.0,72026.0,0.0694185]
[1773614152704,0.12785303,72046.0,72024.0,0.0694713]
[1773614153206,0.12785303,72044.0,72024.0,5e-05]
[1773614153781,0.12785303,72044.0,72023.0,0.00022]
[1773614154213,0.12785303,72044.0,72023.0,0.06964206]
[1773614154565,0.06940299,72043.0,72023.0,0.06964206]
[1773614154733,0.12807137,72042.0,72023.0,0.06964206]
[1773614156423,0.12460454,72042.0,72023.0,0.06964206]
[1773614156658,0.12640829,72040.0,72023.0,0.06964205]
[1773614156982,0.12640829,72038.0,72023.0,0.06964205]
[1773614157335,0.00144,72037.0,72023.0,0.06964205]
[1773614157535,0.12640829,72038.0,72023.0,0.06964205]
[1773614157781,0.00144,72037.0,72023.0,0.06964205]
[1773614157977,0.06940492,72041.0,72023.0,0.06964205]
[1773614158182,0.00144,72046.0,72023.0,0.06964205]
[1773614158357,0.00144,72045.0,72023.0,0.06964205]
[1773614158732,0.06940203,72044.0,72023.0,0.06964205]
[1773614158957,0.13011578,72048.0,72024.0,0.00144]
[1773614159163,0.00144,72047.0,72024.0,0.00144]
[1773614159364,0.06975287,72049.0,72024.0,0.00144]
[1773614159584,0.00144,72048.0,72024.0,0.00144]
[1773614160951,0.06939914,72047.0,72025.0,0.06942034]
[1773614161491,0.07083914,72047.0,72025.0,0.06942034]
[1773614162096,0.06975287,72049.0,72025.0,0.06942034]
[1773614162097,0.06975346,72049.0,72025.0,0.06942034]
[1773614162315,0.00035537,72049.0,72023.0,0.05743991]
[1773614162488,0.0002,72056.0,72023.0,0.05743991]
[1773614162489,0.06939435,72052.0,72026.0,0.00144]
[1773614162684,0.06939435,72052.0,72026.0,0.00179537]
[1773614162897,0.06939435,72052.0,72027.0,0.06941841]
[1773614163492,0.13000533,72050.0,72027.0,0.06941841]
[1773614163731,0.13000533,72050.0,72028.0,0.00144]
[1773614165226,0.19934436,72049.0,72029.0,0.00144]
[1773614165648,0.19934436,72049.0,72027.0,0.06941841]
[1773614165826,0.12989715,72048.0,72030.0,0.00144]
[1773614166224,0.12989715,72048.0,72031.0,0.00144]
[1773614166629,0.12989715,72048.0,72032.0,0.00144]
[1773614167014,0.12989715,72048.0,72026.0,0.06977426]
[1773614167237,0.12989715,72046.0,72026.0,0.06977426]
[1773614167436,0.00144,72045.0,72027.0,0.00144]
[1773614167639,0.06939914,72047.0,72027.0,0.00144]
[1773614167844,0.00144,72046.0,72027.0,0.00144]
[1773614167997,0.12983823,72045.0,72026.0,0.06977426]
[1773614168196,0.00144,72046.0,72026.0,0.07121426]
[1773614168659,0.13127823,72046.0,72026.0,0.07121426]
[1773614169470,0.06940106,72045.0,72030.0,0.06941552]
[1773614170547,0.00144,72044.0,72030.0,0.06941552]
[1773614171236,0.08838259,72044.0,72030.0,0.06941552]
[1773614171437,0.06940299,72043.0,72030.0,0.06941552]
[1773614173538,0.0941924,72042.0,72029.0,0.06963552]
[1773614173761,0.0941924,72042.0,72029.0,0.00022]
[1773614174145,0.0941924,72042.0,72026.0,0.00035537]
[1773614174352,0.0941924,72042.0,72026.0,0.06977447]
[1773614175914,0.06940492,72041.0,72026.0,0.06977447]
[1773614176188,0.09482517,72040.0,72026.0,0.06977447]
[1773614176399,0.00144,72039.0,72026.0,0.06977447]
[1773614176729,0.0002,72049.0,72029.0,0.17324301]
[1773614176897,0.0002,72049.0,72030.0,0.0008211]
[1773614177074,0.0002,72049.0,72031.0,0.00144]
[1773614177848,0.06939817,72048.0,72032.0,0.06941359]
[1773614178619,0.0002,72049.0,72032.0,0.06941359]
[1773614178746,0.00144,72053.0,72033.0,0.00145401]
[1773614178951,0.06939528,72054.0,72033.0,0.00145401]
[1773614180508,0.06939528,72054.0,72034.0,0.06941166]
[1773614181405,0.06939528,72054.0,72034.0,0.07088081]
[1773614182420,0.06939528,72054.0,72034.0,0.06941166]
[1773614182624,0.06939528,72054.0,72034.0,0.07109404]
[1773614183522,0.16441614,72056.0,72035.0,0.00168238]
[1773614183754,0.0002,72056.0,72041.0,0.00168004]
[1773614183963,0.0002,72056.0,72042.0,0.00144]
[1773614184700,0.0002,72056.0,72043.0,0.06940299]
[1773614185129,0.06959143,72056.0,72043.0,0.06940299]
[1773614185287,0.09482517,72055.0,72042.0,0.07084362]
[1773614187189,0.09482517,72053.0,72042.0,0.07084362]
[1773614188566,0.06959143,72056.0,72042.0,0.07084362]
[1773614188770,1e-08,72056.0,72043.0,0.00164163]
[1773614189475,1e-08,72056.0,72044.0,0.06940203]
[1773614189670,1e-08,72056.0,72045.0,0.00162877]
[1773614191468,1e-08,72056.0,72046.0,0.0694001]
[1773614192538,1e-08,72056.0,72047.0,0.00158199]
[1773614192741,1e-08,72056.0,72048.0,0.00144]
[1773614193088,0.09482518,72056.0,72048.0,0.00144]
[1773614193734,0.09482518,72056.0,72037.0,0.23533655]
[1773614193735,0.06939143,72055.0,72037.0,0.23533655]
[1773614193909,0.08845058,72054.0,72039.0,0.00144]
[1773614194121,0.06939144,72056.0,72041.0,0.0484846]
[1773614194122,1e-08,72056.0,72041.0,0.0484846]
[1773614195185,1e-08,72057.0,72041.0,0.0484846]
[1773614195860,1e-08,72057.0,72042.0,0.11786972]
[1773614198735,1e-08,72057.0,72042.0,0.06940395]
[1773614199971,1e-08,72057.0,72043.0,0.0014]
[1773614200177,0.09579706,72071.0,72043.0,0.0014]
[1773614200500,0.06937826,72069.0,72050.0,0.17327065]
[1773614200710,0.06937826,72069.0,72051.0,0.07079528]
[1773614201786,0.0002,72065.0,72051.0,0.07079528]
[1773614205231,0.08850058,72068.0,72051.0,0.07179528]
[1773614205533,0.08850058,72068.0,72051.0,0.07079528]
[1773614205893,0.08850058,72068.0,72051.0,0.07179528]
[1773614206087,0.08850058,72068.0,72051.0,0.07079528]
[1773614206894,0.15787951,72068.0,72051.0,0.07079528]
[1773614207719,0.08850058,72068.0,72051.0,0.07079528]
[1773614208121,0.08850058,72068.0,72051.0,0.07179528]
[1773614208868,0.00025,72068.0,72052.0,0.03795226]
[1773614210362,0.00025,72068.0,72053.0,0.06939336]
[1773614210862,0.00025,72068.0,72058.0,0.05773729]
[1773614211064,0.00025,72068.0,72059.0,0.0014]
[1773614211722,0.08845058,72067.0,72057.0,0.0014]
[1773614212336,0.06938084,72066.0,72052.0,0.06939336]
[1773614212541,0.08799809,72065.0,72053.0,0.0014]
[1773614213092,0.08799809,72065.0,72052.0,0.06939336]
[1773614213583,0.08799809,72065.0,72053.0,0.0014]
[1773614213790,0.08799809,72065.0,72052.0,0.06939336]
[1773614213992,0.08799809,72065.0,72053.0,0.0014]
[1773614214193,0.00025,72068.0,72055.0,0.05773729]
[1773614214417,0.00025,72068.0,72056.0,0.06939047]
[1773614215390,0.06962895,72068.0,72056.0,0.06939047]
[1773614216223,0.06962895,72068.0,72058.0,0.05773729]
[1773614216424,0.16646021,72068.0,72056.0,0.06939047]
[1773614216624,0.0002,72071.0,72058.0,0.05773729]
[1773614217325,0.0002396,72077.0,72059.0,0.03567421]
[1773614217527,0.09719876,72080.0,72066.0,0.05773729]
[1773614217839,0.09715876,72080.0,72070.0,0.05773729]
[1773614218041,0.06969535,72080.0,72071.0,0.0014]
[1773614218198,0.09683126,72079.0,72071.0,0.0014]
[1773614218615,0.09683126,72079.0,72072.0,0.06937506]
[1773614218828,0.1663063,72079.0,72072.0,0.06937506]
[1773614218989,0.09693783,72079.0,72072.0,0.06937506]
[1773614220260,0.0003275,72080.0,72071.0,0.07077582]
[1773614220457,0.0171396,72090.0,72071.0,0.1065482]
[1773614220659,0.09683126,72098.0,72080.0,0.05773729]
[1773614220856,0.09683126,72098.0,72084.0,0.05773729]
[1773614221106,0.06940441,72094.0,72081.0,0.0014]
[1773614221234,0.09683126,72093.0,72082.0,0.0014]
[1773614221451,0.09683126,72093.0,72078.0,0.0014]
[1773614221649,0.09683126,72093.0,72080.0,0.001]
[1773614221923,0.09683126,72093.0,72071.0,0.0694819]
[1773614222093,0.09365125,72093.0,72075.0,0.0014]
[1773614223096,0.09683126,72091.0,72076.0,0.06937121]
[1773614223330,0.20960171,72089.0,72076.0,0.06937121]
[1773614223542,0.09683126,72088.0,72076.0,0.06937121]
[1773614223669,0.06940422,72094.0,72079.0,0.05773729]
[1773614224509,5e-05,72095.0,72084.0,0.05773729]
[1773614224742,0.06958514,72103.0,72085.0,0.07985446]